bitfinex/quotes_SOLUSD_20250908
["timestamp","ask_amount","ask_price","bid_price","bid_amount"]
[1757371167227,0.06,214.88,214.84,41.10462669]
[1757371167431,0.75,214.88,214.84,41.10462669]
[1757371168232,0.06,214.88,214.84,52.74119343]
[1757371168527,0.06,214.88,214.85,0.67]
[1757371168828,0.06,214.88,214.86,35.78]
[1757371169009,0.75,214.88,214.86,35.78]
[1757371169210,0.06,214.88,214.86,35.78]
[1757371169635,0.06,214.88,214.87,4.65397682]
[1757371170030,0.06,214.88,214.86,35.78]
[1757371170556,0.69,214.87,214.85,4.65420461]
[1757371170711,0.69,214.86,214.85,30.65420461]
[1757371170914,0.69,214.86,214.85,61.76]
[1757371172821,0.75,214.88,214.85,61.76]
[1757371173025,0.06,214.88,214.85,66.41431441]
[1757371173244,0.06,214.88,214.85,67.08431441]
[1757371173551,0.69,214.87,214.85,35.76]
[1757371173713,0.06,214.88,214.86,35.76]
[1757371174333,0.69,214.87,214.86,35.76]
[1757371174541,0.75,214.87,214.86,35.76]
[1757371174828,0.06,214.87,214.86,41.08419342]
[1757371177762,0.06,214.87,214.84,30.65450143]
[1757371177937,0.06,214.87,214.85,36.43]
[1757371178351,0.06,214.87,214.85,35.76]
[1757371180574,0.06,214.87,214.85,40.41429436]
[1757371181754,0.06,214.87,214.84,26.0]
[1757371181954,0.06,214.87,214.85,35.76]
[1757371183646,4.14436599,214.86,214.81,4.68507883]
[1757371183858,0.69,214.85,214.82,35.76]
[1757371184057,0.69,214.84,214.82,35.76]
[1757371184368,0.69,214.83,214.82,35.76]
[1757371184940,0.69,214.85,214.82,35.76]
[1757371185574,0.06,214.87,214.82,35.76]
[1757371185575,0.75,214.87,214.82,41.1150509]
[1757371185737,3.4575256,214.86,214.82,41.1150509]
[1757371185941,0.75,214.87,214.82,41.1150509]
[1757371186146,3.45752486,214.86,214.82,41.1150509]
[1757371186475,0.69,214.86,214.82,41.1150509]
[1757371187255,0.06,214.87,214.83,0.7]
[1757371187457,0.06,214.87,214.84,36.46]
[1757371187850,3.46052664,214.86,214.84,36.46]
[1757371188164,0.06,214.87,214.84,36.46]
[1757371188365,3.4622049,214.86,214.84,36.46]
[1757371188564,0.06,214.87,214.84,36.46]
[1757371189149,3.46324453,214.86,214.84,36.46]
[1757371189349,0.06,214.87,214.84,36.46]
[1757371189840,0.06,214.87,214.84,41.11462122]
[1757371190660,0.06,214.87,214.84,35.76]
[1757371191578,0.06,214.87,214.84,36.46]
[1757371193949,0.06,214.87,214.84,41.11460552]
[1757371196458,0.06,214.87,214.85,0.7]
[1757371196663,0.06,214.87,214.86,35.76]
[1757371196861,3.52762935,214.87,214.86,35.76]
[1757371197174,3.52787503,214.87,214.86,35.76]
[1757371200971,0.06,214.87,214.86,35.76]
[1757371201175,3.52924647,214.87,214.86,35.76]
[1757371203378,3.53036174,214.87,214.86,35.76]
[1757371205382,3.53036174,214.87,214.84,0.7]
[1757371205675,0.06,214.87,214.86,35.76]
[1757371205872,3.53121102,214.87,214.86,35.76]
[1757371209865,3.53121102,214.87,214.86,36.46]
[1757371210179,3.53121102,214.87,214.86,35.76]
[1757371210775,3.53121102,214.87,214.86,36.45]
[1757371210979,3.53121102,214.87,214.86,35.76]
[1757371213264,11.62667717,214.87,214.86,35.76]
[1757371213464,10.92667717,214.87,214.86,35.79]
[1757371214085,8.18539811,214.87,214.86,35.79]
[1757371214269,3.53121102,214.87,214.86,35.79]
[1757371214781,3.53121102,214.87,214.86,36.48]
[1757371214977,3.53121102,214.87,214.86,41.13419342]
[1757371215282,0.06,214.87,214.86,41.69269663]
[1757371217967,0.06,214.87,214.86,41.13419342]
[1757371223675,0.06,214.87,214.86,41.11419342]
[1757371224897,4.71291822,214.92,214.86,41.11419342]
[1757371225197,8.12563525,214.91,214.87,35.74]
[1757371225396,3.47246674,214.9,214.87,36.43]
[1757371225586,3.47246674,214.89,214.87,36.43]
[1757371225780,4.65316851,214.91,214.87,36.43]
[1757371225986,3.47225886,214.9,214.87,36.43]
[1757371226298,3.47225886,214.89,214.88,0.69]
[1757371229406,3.47225886,214.89,214.88,35.74]
[1757371232111,3.53225886,214.89,214.88,36.43]
[1757371233602,3.53225886,214.89,214.88,41.08376023]
[1757371236291,0.06,214.89,214.88,41.08376023]
[1757371237405,0.06,214.89,214.88,41.64221145]
[1757371242806,0.06,214.89,214.88,5.90221145]
[1757371243007,0.06,214.89,214.88,41.62221145]
[1757371245506,0.06,214.89,214.88,43.48315262]
[1757371247308,0.06,214.92,214.91,26.0]
[1757371247505,0.06,214.92,214.91,62.27837327]
[1757371247702,0.06,214.92,214.91,26.55837327]
[1757371248005,0.06,214.92,214.91,61.72]
[1757371248916,0.06,214.92,214.91,62.43]
[1757371249817,0.06,214.92,214.91,66.3731106]
[1757371251416,0.06,214.92,214.91,30.6531106]
[1757371251815,0.06,214.92,214.91,66.3731106]
[1757371252693,0.06,214.92,214.91,67.0831106]
[1757371254411,0.06,214.92,214.91,66.3731106]
[1757371254616,0.06,214.92,214.91,30.6531106]
[1757371254814,0.06,214.92,214.91,66.3731106]
[1757371256028,0.06,214.92,214.91,30.6531106]
[1757371256326,0.06,214.92,214.91,66.3731106]
[1757371258026,0.06,214.92,214.91,67.0831106]
[1757371261323,0.06,214.92,214.91,66.3731106]
[1757371261924,0.06,214.92,214.91,67.0831106]
[1757371265234,0.06,214.92,214.91,66.3731106]
[1757371265625,0.06,214.92,214.91,67.0831106]
[1757371266426,0.06,214.92,214.91,66.3731106]
[1757371267124,0.22,214.92,214.88,0.03]
[1757371267327,0.16,214.91,214.88,0.03]
[1757371267558,6.30699696,214.91,214.89,35.7]
[1757371267829,4.4456228,214.9,214.88,0.03]
[1757371268034,4.4456228,214.9,214.89,35.7]
[1757371268214,0.16,214.9,214.89,35.7]
[1757371268630,4.6056228,214.9,214.89,35.7]
[1757371273024,8.0734753,214.9,214.89,35.7]
[1757371274135,12.72683598,214.9,214.88,0.03]
[1757371274332,9.09898348,214.9,214.89,35.72]
[1757371274513,12.72696136,214.9,214.89,35.72]
[1757371274710,7.91360068,214.9,214.89,35.72]
[1757371274934,0.06,214.92,214.91,26.0]
[1757371275325,0.06,214.92,214.91,62.44]
[1757371276239,0.06,214.92,214.91,67.0931106]
[1757371276620,0.2,214.94,214.91,67.0931106]
[1757371276822,0.06,214.98,214.92,1.27834729]
[1757371277035,0.2,214.99,214.96,26.0]
[1757371277216,0.06,215.0,214.99,26.0]
[1757371277412,3.47065238,215.1,215.03,26.0]
[1757371277631,2.60990282,215.14,215.07,26.0]
[1757371277830,3.47129889,215.13,215.08,36.42]
[1757371278033,3.47129889,215.12,215.08,36.42]
[1757371278233,0.55,215.13,215.08,41.06925556]
[1757371278442,3.46774095,215.12,215.08,41.06925556]
[1757371278739,0.2,215.14,215.09,0.72]
[1757371278936,3.46772305,215.13,215.1,35.7]
[1757371279123,3.46772305,215.12,215.11,0.72]
[1757371279326,0.2,215.14,215.11,0.72]
[1757371279531,3.46468126,215.13,215.12,35.7]
[1757371280132,0.2,215.14,215.12,35.7]
[1757371280745,0.2,215.14,215.1,4.64900046]
[1757371280931,0.2,215.14,215.11,35.7]
[1757371281134,0.2,215.14,215.1,5.36900046]
[1757371281439,3.66003533,215.14,215.1,5.36900046]
[1757371281627,0.2,215.14,215.1,0.72]
[1757371281829,0.2,215.14,215.11,35.7]
[1757371282046,3.66009312,215.14,215.11,35.7]
[1757371282247,0.2,215.14,215.11,35.7]
[1757371282438,0.2,215.14,215.12,0.72]
[1757371282643,0.2,215.14,215.13,0.72]
[1757371282950,0.06,215.13,215.12,0.72]
[1757371284530,0.06,215.13,215.12,2.57912482]
[1757371284946,0.06,215.13,215.12,35.68]
[1757371285533,0.06,215.13,215.12,36.4]
[1757371285927,0.06,215.13,215.12,0.72]
[1757371286153,0.06,215.13,215.12,35.68]
[1757371286648,0.06,215.13,215.11,26.0]
[1757371286849,0.06,215.13,215.12,35.68]
[1757371288244,0.06,215.13,215.1,4.64888809]
[1757371288546,0.06,215.13,215.11,35.68]
[1757371291655,0.06,215.13,215.11,40.3287789]
[1757371291849,0.06,215.13,215.11,41.0487789]
[1757371292155,0.06,215.13,215.11,40.3287789]
[1757371292353,0.06,215.13,215.11,35.68]
[1757371292555,0.06,215.13,215.12,0.72]
[1757371294037,0.06,215.13,215.12,5.36856824]
[1757371297852,0.2,215.14,215.13,30.64835215]
[1757371298176,0.2,215.14,215.13,67.04835215]
[1757371299254,0.06,215.16,215.13,78.66923254]
[1757371299447,0.06,215.16,215.14,0.72]
[1757371299647,0.06,215.16,215.15,35.68]
[1757371299844,0.06,215.16,215.15,0.72]
[1757371300047,0.06,215.16,215.15,36.4]
[1757371301164,0.06,215.16,215.15,41.04792005]
[1757371304671,0.06,215.16,215.15,5.36792005]
[1757371304872,0.06,215.16,215.15,41.02792005]
[1757371305372,0.06,215.16,215.15,40.30792005]
[1757371306074,0.06,215.16,215.15,4.64792005]
[1757371306272,0.06,215.16,215.15,40.30792005]
[1757371306575,0.06,215.16,215.15,35.66]
[1757371307170,0.06,215.16,215.15,36.38]
[1757371307680,0.06,215.16,215.15,41.02792005]
[1757371316590,0.06,215.16,215.15,40.30792005]
[1757371317194,0.06,215.16,215.15,41.02792005]
[1757371318597,0.06,215.16,215.15,4.64792005]
[1757371318794,0.06,215.16,215.15,66.30792005]
[1757371319396,0.61,215.16,215.15,26.0]
[1757371319585,0.61,215.16,215.15,35.66]
[1757371319586,0.06,215.16,215.15,35.66]
[1757371319780,0.06,215.16,215.15,40.30792005]
[1757371322278,3.52699817,215.16,215.15,40.30792005]
[1757371322472,3.52699817,215.16,215.15,35.66]
[1757371323393,3.52699817,215.16,215.15,40.30792005]
[1757371323706,4.07699817,215.16,215.15,35.66]
[1757371323874,3.52699817,215.16,215.15,35.66]
[1757371324406,3.52699817,215.16,215.15,40.30792005]
[1757371327602,3.52699817,215.16,215.15,35.66]
[1757371327794,4.07699817,215.16,215.14,0.03]
[1757371328102,0.06,215.16,215.15,62.38]
[1757371328981,0.06,215.16,215.15,67.02792005]
[1757371337806,0.06,215.16,215.15,67.16792005]
[1757371338594,0.06,215.17,215.15,41.72567045]
[1757371338793,0.55,215.28,215.18,26.0]
[1757371338991,0.55,215.28,215.22,26.0]
[1757371339318,0.55,215.28,215.23,35.8]
[1757371339801,0.55,215.28,215.23,36.5]
[1757371339988,0.55,215.28,215.24,4.64597658]
[1757371340188,0.55,215.28,215.25,35.8]
[1757371340488,4.64405558,215.33,215.25,35.8]
[1757371340698,0.55,215.28,215.25,35.8]
[1757371341901,0.55,215.28,215.25,40.44572369]
[1757371342883,0.55,215.3,215.25,40.44572369]
[1757371343384,0.55,215.29,215.25,40.44572369]
[1757371343580,0.55,215.28,215.26,35.78]
[1757371343807,0.55,215.28,215.23,5.34618751]
[1757371343808,7.38087799,215.31,215.27,35.78]
[1757371344380,0.55,215.3,215.27,35.78]
[1757371344598,0.55,215.29,215.27,35.78]
[1757371344795,4.64453103,215.31,215.27,35.78]
[1757371345003,0.55,215.28,215.27,35.78]
[1757371349811,4.64468673,215.3,215.27,35.76]
[1757371350013,0.55,215.29,215.27,35.76]
[1757371353493,0.55,215.3,215.27,35.76]
[1757371354304,4.64446611,215.31,215.27,36.46]
[1757371354704,5.19446611,215.31,215.27,36.46]
[1757371354905,5.19446611,215.31,215.27,35.76]
[1757371355114,0.55,215.31,215.27,36.46]
[1757371355318,0.06,215.29,215.28,0.7]
[1757371356022,0.06,215.29,215.27,36.46]
[1757371357126,0.06,215.29,215.27,35.76]
[1757371357314,0.06,215.29,215.27,36.46]
[1757371358002,0.06,215.29,215.28,35.72]
[1757371360213,0.06,215.29,215.28,36.4]
[1757371363929,0.06,215.29,215.28,35.72]
[1757371365001,0.06,215.29,215.28,36.4]
[1757371365226,0.06,215.29,215.28,35.72]
[1757371365531,0.06,215.29,215.28,35.68]
[1757371365736,0.06,215.29,215.27,0.68]
[1757371365918,0.06,215.29,215.28,36.36]
[1757371366606,0.06,215.29,215.28,35.68]
[1757371366927,0.06,215.29,215.27,0.68]
[1757371367228,0.06,215.29,215.28,35.68]
[1757371367610,0.06,215.29,215.28,36.36]
[1757371369836,0.06,215.29,215.28,0.68]
[1757371370135,0.06,215.29,215.28,35.66]
[1757371371710,0.06,215.29,215.28,36.34]
[1757371371907,0.06,215.29,215.28,0.68]
[1757371372111,0.06,215.29,215.28,36.34]
[1757371373914,0.06,215.29,215.28,0.68]
[1757371374116,0.06,215.29,215.28,36.34]
[1757371378049,0.06,215.29,215.28,35.66]
[1757371378218,0.61,215.29,215.28,35.66]
[1757371378534,0.06,215.29,215.28,35.66]
[1757371378752,0.61,215.29,215.28,35.66]
[1757371379625,4.70489758,215.29,215.28,35.66]
[1757371379828,4.70489758,215.29,215.25,0.68]
[1757371380029,4.70489758,215.29,215.28,35.66]
[1757371380227,8.17941969,215.29,215.28,35.66]
[1757371381344,8.72941969,215.29,215.2,4.6467197]
[1757371381640,4.64554492,215.26,215.21,62.34]
[1757371381839,4.64554492,215.26,215.22,0.68]
[1757371382945,4.27066455,215.27,215.22,0.68]
[1757371383348,3.4775111,215.26,215.22,0.68]
[1757371383535,4.27066455,215.27,215.22,0.68]
[1757371383733,3.4775111,215.26,215.22,0.68]
[1757371384046,4.27066455,215.27,215.22,0.68]
[1757371384840,8.91614318,215.27,215.22,0.68]
[1757371385038,8.29771858,215.26,215.19,0.03]
[1757371385350,4.27066455,215.24,215.2,35.66]
[1757371385544,4.27066455,215.24,215.21,0.68]
[1757371385850,4.27066455,215.22,215.19,0.03]
[1757371386155,4.27066455,215.22,215.2,35.66]
[1757371386445,4.27066455,215.21,215.2,35.66]
[1757371386650,21.89189061,215.21,215.19,0.03]
[1757371386956,25.98874928,215.2,215.19,0.03]
[1757371387157,25.98874928,215.2,215.19,35.71]
[1757371387459,23.0630987,215.2,215.19,0.03]
[1757371387630,23.0630987,215.2,215.19,35.71]
[1757371388152,26.53617134,215.2,215.19,35.71]
[1757371389936,23.0630987,215.2,215.19,35.71]
[1757371390339,18.79243415,215.2,215.19,35.71]
[1757371390550,23.0630987,215.2,215.19,35.71]
[1757371390949,26.52985988,215.2,215.19,0.03]
[1757371391156,26.52985988,215.2,215.19,35.71]
[1757371391335,23.0630987,215.2,215.19,35.71]
[1757371392035,26.52820309,215.2,215.19,35.71]
[1757371392235,23.0630987,215.2,215.19,35.71]
[1757371395463,37.00912757,215.2,215.19,35.71]
[1757371398246,37.00912757,215.2,215.19,0.03]
[1757371398452,37.00912757,215.2,215.19,35.71]
[1757371399053,36.45912757,215.2,215.19,35.71]
[1757371399253,37.00912757,215.2,215.19,35.71]
[1757371399454,36.45912757,215.2,215.19,35.71]
[1757371399941,37.00912757,215.2,215.19,0.03]
[1757371400258,4.64662537,215.21,215.19,36.39]
[1757371400447,18.5907096,215.21,215.2,0.68]
[1757371400641,4.64662537,215.21,215.2,0.68]
[1757371401046,18.21410068,215.22,215.2,0.68]
[1757371401269,4.27066455,215.26,215.2,0.68]
[1757371401444,4.64576478,215.25,215.2,0.68]
[1757371401642,4.64576478,215.25,215.21,35.68]
[1757371401845,4.64576478,215.25,215.22,0.68]
[1757371402060,4.64576478,215.25,215.23,0.68]
[1757371402261,4.64555415,215.26,215.24,0.68]
[1757371402463,13.59559401,215.26,215.24,0.68]
[1757371402772,17.86625856,215.26,215.24,0.68]
[1757371403070,17.86625856,215.26,215.25,0.68]
[1757371403285,17.86625856,215.26,215.23,0.68]
[1757371403772,4.27066455,215.25,215.23,0.68]
[1757371404357,4.64576074,215.25,215.23,0.68]
[1757371404683,2.73476388,215.24,215.21,36.36]
[1757371404981,2.73476388,215.24,215.22,0.68]
[1757371405791,2.73476388,215.23,215.22,0.68]
[1757371405976,2.73476388,215.23,215.22,35.68]
[1757371406165,13.59559401,215.22,215.19,0.71]
[1757371406469,4.64662422,215.21,215.2,35.68]
[1757371407757,7.3813881,215.21,215.2,35.68]
[1757371410175,7.3813881,215.21,215.2,36.36]
[1757371410868,4.64662422,215.21,215.2,36.36]
[1757371416165,7.3813881,215.21,215.2,35.68]
[1757371416978,7.9313881,215.21,215.19,0.03]
[1757371417167,18.24221823,215.21,215.2,35.68]
[1757371417690,4.64662422,215.21,215.2,36.36]
[1757371417861,4.64597658,215.24,215.2,36.36]
[1757371418061,4.64597658,215.24,215.21,0.68]
[1757371418366,2.73476388,215.23,215.21,0.68]
[1757371419063,4.64640832,215.22,215.21,0.68]
[1757371422685,2.73476388,215.22,215.21,0.68]
[1757371423682,134.5,215.25,215.21,0.68]
[1757371423881,2.73476388,215.23,215.21,0.68]
[1757371424062,2.73476388,215.23,215.21,0.67]
[1757371424880,3.28476388,215.22,215.19,0.03]
[1757371425090,2.73476388,215.21,215.2,35.68]
[1757371425277,2.73476388,215.21,215.2,36.35]
[1757371427473,7.3813881,215.21,215.2,36.35]
[1757371428283,7.44114321,215.23,215.2,36.35]
[1757371428488,4.70637933,215.23,215.21,0.67]
[1757371429769,4.70637933,215.23,215.22,0.67]
[1757371430010,8.1788764,215.23,215.22,0.67]
[1757371430172,8.1788764,215.23,215.2,35.68]
[1757371430375,4.70637933,215.23,215.21,0.67]
[1757371430586,6.20782715,215.22,215.19,0.03]
[1757371430778,2.73476388,215.21,215.2,35.68]
[1757371431281,2.73476388,215.22,215.2,35.68]
[1757371431899,4.64662422,215.21,215.2,35.68]
[1757371433010,7.3813881,215.21,215.2,35.68]
[1757371434294,4.64640832,215.22,215.2,35.68]
[1757371434600,2.73476388,215.21,215.2,35.68]
[1757371435291,7.3813881,215.21,215.2,35.68]
[1757371435590,4.64662422,215.21,215.2,35.68]
[1757371435792,7.3813881,215.21,215.2,36.35]
[1757371435991,4.64662422,215.21,215.2,36.35]
[1757371437588,4.64640832,215.22,215.2,36.35]
[1757371437784,4.64640832,215.22,215.21,0.67]
[1757371437983,8.12099648,215.22,215.21,0.67]
[1757371439400,10.85576036,215.22,215.2,35.68]
[1757371439579,7.3811722,215.22,215.2,36.35]
[1757371440497,0.06,215.23,215.2,36.35]
[1757371440812,6.21091487,215.22,215.21,0.67]
[1757371441394,3.47615099,215.22,215.21,0.67]
[1757371442300,8.12255931,215.22,215.21,0.67]
[1757371443397,8.18255931,215.22,215.21,0.67]
[1757371443598,8.18453188,215.22,215.21,0.67]
[1757371443990,8.18453188,215.22,215.2,35.68]
[1757371444187,6.21288744,215.21,215.19,0.03]
[1757371444381,0.06,215.22,215.2,36.33]
[1757371444574,3.47934294,215.21,215.2,35.66]
[1757371445179,4.70642451,215.22,215.2,36.33]
[1757371445374,4.70642451,215.22,215.21,0.67]
[1757371445599,8.1856682,215.22,215.21,0.67]
[1757371447586,3.53924369,215.22,215.21,0.67]
[1757371449799,8.18565201,215.22,215.21,0.67]
[1757371453204,3.53924369,215.22,215.21,0.67]
[1757371453397,0.06,215.22,215.21,0.67]
[1757371453801,8.18643421,215.22,215.21,0.67]
[1757371454909,8.18643421,215.22,215.2,35.66]
[1757371455111,3.48011316,215.21,215.2,35.66]
[1757371455508,8.12673738,215.21,215.2,35.66]
[1757371457808,8.12673738,215.21,215.2,36.34]
[1757371458005,8.12673738,215.21,215.2,35.66]
[1757371458992,8.12673738,215.21,215.2,36.34]
[1757371462004,3.54011316,215.21,215.2,36.34]
[1757371462316,0.06,215.21,215.2,36.34]
[1757371462694,0.06,215.21,215.2,40.98684014]
[1757371463302,0.06,215.21,215.2,41.54446095]
[1757371468603,0.06,215.21,215.2,0.55762081]
[1757371468806,0.06,215.21,215.2,36.48]
[1757371478829,0.06,215.21,215.2,35.8]
[1757371479929,0.06,215.21,215.2,36.48]
[1757371480337,0.06,215.21,215.2,41.12684014]
[1757371483718,0.06,215.21,215.2,36.48]
[1757371484425,0.06,215.21,215.2,36.43]
[1757371492142,0.06,215.21,215.2,0.67]
[1757371492345,5.02070307,215.21,215.19,0.03]
[1757371492552,4.27070307,215.2,215.19,0.03]
[1757371492845,21.34165465,215.2,215.19,0.03]
[1757371493022,21.34165465,215.2,215.19,28.91]
[1757371493224,23.8909523,215.2,215.19,28.91]
[1757371494027,28.53779244,215.2,215.19,28.91]
[1757371495149,24.26708937,215.2,215.19,28.91]
[1757371495368,28.53779244,215.2,215.19,28.91]
[1757371496349,24.26708937,215.2,215.19,28.91]
[1757371496533,28.53779244,215.2,215.19,28.91]
[1757371498532,28.53401387,215.2,215.19,28.91]
[1757371500647,28.53401387,215.2,215.19,0.03]
[1757371500862,27.73514169,215.2,215.19,0.03]
[1757371501154,9.97771679,215.2,215.19,35.71]
[1757371503051,14.93841986,215.2,215.19,35.71]
[1757371504932,14.24841986,215.2,215.19,35.71]
[1757371505432,9.97771679,215.2,215.19,35.71]
[1757371512370,5.33087665,215.2,215.19,36.4]
[1757371512664,1.85929765,215.2,215.19,36.4]
[1757371512857,6.50613779,215.2,215.19,35.71]
[1757371513064,6.56613779,215.2,215.19,35.71]
[1757371513253,10.83684086,215.2,215.19,35.71]
[1757371513448,14.30546819,215.2,215.19,0.03]
[1757371513655,15.00546819,215.2,215.19,30.03]
[1757371513860,28.6010622,215.2,215.19,35.71]
[1757371514061,28.6010622,215.2,215.19,0.03]
[1757371521195,23.63035913,215.2,215.19,0.03]
[1757371521697,1.91929765,215.2,215.19,0.72]
[1757371521857,0.06,215.2,215.19,0.72]
[1757371525975,1.91912482,215.2,215.19,0.72]
[1757371526469,6.56596496,215.2,215.19,0.72]
[1757371530900,4.70684014,215.2,215.19,0.72]
[1757371531084,7.44266899,215.2,215.19,0.72]
[1757371532195,0.06,215.2,215.19,0.72]
[1757371534098,0.06,215.2,215.19,36.46]
[1757371534452,0.06,215.2,215.19,0.72]
[1757371534660,0.06,215.2,215.19,35.75]
[1757371534964,0.06,215.2,215.19,36.44]
[1757371545474,0.06,215.2,215.19,41.08705608]
[1757371546165,0.06,215.2,215.19,0.72]
[1757371546387,0.06,215.2,215.19,36.4]
[1757371548881,0.06,215.2,215.19,0.72]
[1757371549077,0.06,215.2,215.19,36.4]
[1757371551591,0.06,215.2,215.19,0.03]
[1757371551907,0.06,215.2,215.19,36.38]
[1757371554405,0.06,215.2,215.19,0.03]
[1757371554884,0.06,215.2,215.19,21.57]
[1757371555572,0.06,215.2,215.19,22.24]
[1757371562283,17.05142286,215.2,215.19,0.03]
[1757371562475,20.5238124,215.2,215.19,17.77]
[1757371563585,25.17065254,215.2,215.19,17.77]
[1757371565379,25.17065254,215.2,215.19,0.03]
[1757371565782,39.11797814,215.2,215.19,0.03]
[1757371566201,42.59415335,215.2,215.19,0.03]
[1757371567286,39.59559401,215.17,215.16,1e-08]
[1757371567588,13.59559401,215.16,215.14,0.03]
[1757371567790,45.8038124,215.15,215.14,0.03]
[1757371568182,46.4638124,215.15,215.14,0.03]
[1757371568381,19.8038124,215.15,215.14,0.03]
[1757371568588,29.7938124,215.15,215.14,0.03]
[1757371568793,20.4638124,215.15,215.14,0.03]
[1757371569192,25.11173245,215.15,215.14,0.03]
[1757371569398,24.45173245,215.15,215.14,0.03]
[1757371570180,25.16173245,215.15,215.14,0.03]
[1757371572697,27.02189475,215.15,215.14,0.03]
[1757371575620,23.5760659,215.15,215.14,0.03]
[1757371575926,26.31189475,215.15,215.14,0.03]
[1757371576220,21.7159036,215.15,215.14,0.03]
[1757371576514,24.45173245,215.15,215.14,0.03]
[1757371577609,20.97934291,215.15,215.14,0.03]
[1757371578426,24.43619469,215.15,215.14,0.03]
[1757371578590,20.97934291,215.15,215.14,0.03]
[1757371578926,24.43615075,215.15,215.14,0.03]
[1757371579215,20.97934291,215.15,215.14,0.03]
[1757371579818,21.68934291,215.15,215.14,0.03]
[1757371580002,24.43575661,215.15,215.14,0.03]
[1757371582917,21.69992776,215.15,215.14,0.03]
[1757371583097,24.43575661,215.15,215.14,0.03]
[1757371583498,24.43575661,215.15,215.14,0.71]
[1757371583810,24.43575661,215.15,215.14,0.03]
[1757371584518,20.97934291,215.15,215.14,0.03]
[1757371586407,22.52165111,215.15,215.14,0.03]
[1757371591914,22.52165111,215.15,215.14,0.71]
[1757371592115,18.24351406,215.15,215.14,0.71]
[1757371592310,22.52165111,215.15,215.14,0.71]
[1757371592915,22.52165111,215.15,215.14,0.03]
[1757371595733,25.97546566,215.15,215.14,0.03]
[1757371598534,26.68546566,215.15,215.14,0.03]
[1757371599032,28.54571447,215.15,215.14,0.03]
[1757371600027,43.87373106,215.12,215.11,1e-08]
[1757371600225,47.32754561,215.12,215.11,1e-08]
[1757371600430,48.03754561,215.12,215.11,1e-08]
[1757371600630,49.89788094,215.12,215.11,1e-08]
[1757371601140,54.54644918,215.12,215.11,1e-08]
[1757371601316,53.83644918,215.12,215.11,1e-08]
[1757371607431,54.54644918,215.12,215.11,1e-08]
[1757371609844,93.69187949,215.12,215.11,1e-08]
[1757371610540,93.69187949,215.12,215.01,35.73]
[1757371610541,13.59559401,215.07,215.02,0.69]
[1757371610746,26.0,215.08,215.01,0.03]
[1757371610747,4.27813705,215.03,215.01,0.03]
[1757371610922,7.7319516,215.02,215.01,0.72]
[1757371611324,4.27813705,215.02,215.01,0.72]
[1757371611738,8.92886721,215.02,215.01,0.72]
[1757371614234,8.92886721,215.02,215.01,0.03]
[1757371614235,12.39239896,215.02,215.01,0.03]
[1757371614849,12.39239896,215.02,215.01,0.72]
[1757371615046,12.39239896,215.02,215.01,0.03]
[1757371616740,25.98799297,215.02,215.01,0.03]